fUST/lending_fUST_20250522
["ID","MTS","AMOUNT","RATE_DAILY","PERIOD"]
[361859105,1747848636665,-450.0,0.00021917,2]
[361859106,1747848636680,-430.0,0.00021917,2]
[361859107,1747848636689,-408.81915788,0.00021917,2]
[361859108,1747848636698,-430.0,0.00021917,2]
[361859109,1747848636708,-421.17365399,0.00021917,2]
[361859110,1747848636719,-430.0,0.00021917,2]
[361859111,1747848636728,-430.0,0.00021917,2]
[361859112,1747848636738,-430.0,0.00021917,2]
[361859113,1747848636748,-430.0,0.00021917,2]
[361859114,1747848636760,-430.0,0.00021917,2]
[361859115,1747848636771,-273.93681344,0.00021917,2]
[361859116,1747848636782,-430.0,0.00021917,2]
[361859117,1747848636793,-430.0,0.00021917,2]
[361859118,1747848636803,-450.0,0.00021917,2]
[361859119,1747848636814,-430.0,0.00021917,2]
[361859120,1747848636824,-430.0,0.00021917,2]
[361859121,1747848636835,-430.0,0.00021917,2]
[361859122,1747848636845,-520.0,0.00021917,2]
[361859123,1747848636856,-235.26891654,0.00021917,2]
[361859124,1747848636866,-433.4971624,0.00021917,2]
[361859125,1747848636876,-211.87805171,0.00021917,2]
[361859126,1747848636887,-430.0,0.00021917,2]
[361859127,1747848636896,-430.0,0.00021917,2]
[361859128,1747848636906,-430.0,0.00021917,2]
[361859129,1747848636916,-430.0,0.00021917,2]
[361859130,1747848636931,-430.0,0.00021917,2]
[361859131,1747848636942,-158.1884786,0.00021917,2]
[361859132,1747848636951,-430.0,0.00021917,2]
[361859133,1747848636962,-430.0,0.00021917,2]
[361859134,1747848636972,-430.0,0.00021917,2]
[361859135,1747848636982,-172.86308581,0.00021917,2]
[361859136,1747848636992,-430.0,0.00021917,2]
[361859137,1747848637002,-430.0,0.00021917,2]
[361859138,1747848637012,-430.0,0.00021917,2]
[361859139,1747848637022,-430.0,0.00021917,2]
[361859140,1747848637031,-259.93989196,0.00021917,2]
[361859141,1747848637040,-430.0,0.00021917,2]
[361859142,1747848637049,-430.0,0.00021917,2]
[361859143,1747848637058,-430.0,0.00021917,2]
[361859144,1747848637068,-430.0,0.00021917,2]
[361859145,1747848637076,-347.0739898,0.00021917,2]
[361859146,1747848637086,-472.04247623,0.00021917,2]
[361859147,1747848637095,-430.0,0.00021917,2]
[361859148,1747848637104,-430.0,0.00021917,2]
[361859149,1747848637114,-430.0,0.00021917,2]
[361859150,1747848637124,-430.0,0.00021917,2]
[361859151,1747848637133,-275.9536375,0.00021917,2]
[361859152,1747848637143,-430.0,0.00021917,2]
[361859153,1747848637152,-430.0,0.00021917,2]
[361859154,1747848637161,-430.0,0.00021917,2]
[361859155,1747848637171,-430.0,0.00021917,2]
[361859156,1747848637185,-502.52213095,0.00021917,2]
[361859157,1747848637194,-430.0,0.00021917,2]
[361859158,1747848637204,-1986.19,0.00021917,2]
[361859159,1747848637214,-430.0,0.00021917,2]
[361859160,1747848637227,-430.0,0.00021917,2]
[361859161,1747848637236,-430.0,0.00021917,2]
[361859162,1747848637246,-431.9115172,0.00021917,2]
[361859163,1747848637255,-430.0,0.00021917,2]
[361859164,1747848637264,-435.16425412,0.00021917,2]
[361859165,1747848637274,-330.0,0.00021917,2]
[361859166,1747848637283,-430.0,0.00021917,2]
[361859167,1747848637292,-430.0,0.00021917,2]
[361859168,1747848637302,-430.0,0.00021917,2]
[361859169,1747848637312,-430.0,0.00021917,2]
[361859170,1747848637322,-430.0,0.00021917,2]
[361859171,1747848637332,-430.0,0.00021917,2]
[361859172,1747848637342,-430.0,0.00021917,2]
[361859173,1747848637352,-406.08489239,0.00021917,2]
[361859174,1747848637362,-430.0,0.00021917,2]
[361859175,1747848637374,-430.0,0.00021917,2]
[361859176,1747848637384,-430.0,0.00021917,2]
[361859177,1747848637395,-430.0,0.00021917,2]
[361859178,1747848637405,-430.0,0.00021917,2]
[361859179,1747848637416,-430.0,0.00021917,2]
[361859180,1747848637432,-430.0,0.00021917,2]
[361859182,1747848637445,-430.0,0.00021917,2]
[361859183,1747848637455,-430.0,0.00021917,2]
[361859185,1747848637466,-430.0,0.00021917,2]
[361859187,1747848637476,-430.0,0.00021917,2]
[361859189,1747848637486,-430.0,0.00021917,2]
[361859191,1747848637497,-430.0,0.00021917,2]
[361859193,1747848637506,-430.0,0.00021917,2]
[361859195,1747848637517,-430.0,0.00021917,2]
[361859197,1747848637528,-430.0,0.00021917,2]
[361859199,1747848637539,-500.0,0.00021917,2]
[361859202,1747848637550,-500.0,0.00021917,2]
[361859204,1747848637561,-500.0,0.00021917,2]
[361859206,1747848637572,-500.0,0.00021917,2]
[361859210,1747848637583,-500.0,0.00021917,2]
[361859212,1747848637594,-430.0,0.00021917,2]
[361859215,1747848637605,-500.0,0.00021917,2]
[361859217,1747848637615,-373.9647195,0.00021917,2]
[361859219,1747848637626,-290.42540321,0.00021917,2]
[361859222,1747848637638,-430.0,0.00021917,2]
[361859225,1747848637651,-430.0,0.00021917,2]
[361859227,1747848637667,-500.0,0.00021917,2]
[361859229,1747848637694,-430.0,0.00021917,2]
[361859231,1747848637712,-430.0,0.00021917,2]
[361859233,1747848637728,-273.4044602,0.00021917,2]
[361859235,1747848637738,-430.0,0.00021917,2]
[361859237,1747848637748,-514.27897274,0.00021917,2]
[361859240,1747848637760,-430.0,0.00021917,2]
[361859242,1747848637770,-545.17270114,0.00021917,2]
[361859244,1747848637780,-430.0,0.00021917,2]
[361859246,1747848637790,-430.0,0.00021917,2]
[361859248,1747848637800,-400.0,0.00021917,2]
[361859250,1747848637812,-430.0,0.00021917,2]
[361859252,1747848637823,-430.0,0.00021917,2]
[361859254,1747848637833,-430.0,0.00021917,2]
[361859256,1747848637843,-430.0,0.00021917,2]
[361859258,1747848637853,-400.44991057,0.00021917,2]
[361859261,1747848637863,-262.294654,0.00021917,2]
[361859264,1747848637874,-490.6467228,0.00021917,2]
[361859266,1747848637883,-299.20259573,0.00021917,2]
[361859268,1747848637893,-404.55519554,0.00021917,2]
[361859270,1747848637903,-430.0,0.00021917,2]
[361859271,1747848637913,-452.32075423,0.00021917,2]
[361859273,1747848637922,-243.7078941,0.00021917,2]
[361859275,1747848637937,-430.0,0.00021917,2]
[361859278,1747848637948,-430.0,0.00021917,2]
[361859279,1747848637957,-451.02852295,0.00021917,2]
[361859280,1747848637967,-430.0,0.00021917,2]
[361859281,1747848637976,-430.0,0.00021917,2]
[361859282,1747848637987,-430.0,0.00021917,2]
[361859283,1747848637997,-430.63332418,0.00021917,2]
[361859284,1747848638009,-430.0,0.00021917,2]
[361859285,1747848638020,-431.70411064,0.00021917,2]
[361859286,1747848638031,-454.5639248,0.00021917,2]
[361859287,1747848638041,-430.34543098,0.00021917,2]
[361859288,1747848638052,-431.01518832,0.00021917,2]
[361859289,1747848638062,-430.0,0.00021917,2]
[361859291,1747848638071,-453.19469808,0.00021917,2]
[361859293,1747848638080,-400.43682728,0.00021917,2]
[361859294,1747848638089,-450.0,0.00021917,2]
[361859297,1747848638100,-502.68265036,0.00021917,2]
[361859300,1747848638109,-431.59099238,0.00021917,2]
[361859302,1747848638118,-430.0,0.00021917,2]
[361859304,1747848638128,-430.0,0.00021917,2]
[361859307,1747848638137,-430.65175927,0.00021917,2]
[361859310,1747848638146,-500.0,0.00021917,2]
[361859312,1747848638156,-430.0,0.00021917,2]
[361859314,1747848638166,-430.0,0.00021917,2]
[361859316,1747848638178,-430.0,0.00021917,2]
[361859318,1747848638188,-430.0,0.00021917,2]
[361859320,1747848638198,-439.31494667,0.00021917,2]
[361859322,1747848638208,-430.0,0.00021917,2]
[361859323,1747848638218,-430.0,0.00021917,2]
[361859324,1747848638227,-430.0,0.00021917,2]
[361859325,1747848638237,-430.0,0.00021917,2]
[361859326,1747848638246,-430.0,0.00021917,2]
[361859327,1747848638255,-450.61126204,0.00021917,2]
[361859328,1747848638265,-300.96824185,0.00021917,2]
[361859329,1747848638274,-431.38325702,0.00021917,2]
[361859330,1747848638284,-435.28004367,0.00021917,2]
[361859331,1747848638294,-430.0,0.00021917,2]
[361859332,1747848638304,-430.0,0.00021917,2]
[361859333,1747848638313,-500.0,0.00021917,2]
[361859334,1747848638323,-500.0,0.00021917,2]
[361859336,1747848638332,-500.0,0.00021917,2]
[361859338,1747848638342,-500.0,0.00021917,2]
[361859340,1747848638352,-430.0,0.00021917,2]
[361859341,1747848638362,-500.0,0.00021917,2]
[361859342,1747848638371,-430.0,0.00021917,2]
[361859343,1747848638381,-210.64309618,0.00021917,2]
[361859344,1747848638391,-430.0,0.00021917,2]
[361859345,1747848638401,-430.38343632,0.00021917,2]
[361859346,1747848638411,-430.0,0.00021917,2]
[361859347,1747848638421,-430.0,0.00021917,2]
[361859348,1747848638434,-430.0,0.00021917,2]
[361859349,1747848638443,-430.0,0.00021917,2]
[361859350,1747848638453,-430.0,0.00021917,2]
[361859351,1747848638463,-233.75759186,0.00021917,2]
[361859352,1747848638473,-475.36104579,0.00021917,2]
[361859353,1747848638483,-430.0,0.00021917,2]
[361859354,1747848638494,-403.46820996,0.00021917,2]
[361859355,1747848638505,-430.52180674,0.00021917,2]
[361859356,1747848638515,-404.76340026,0.00021917,2]
[361859357,1747848638526,-430.5881229,0.00021917,2]
[361859358,1747848638535,-430.0,0.00021917,2]
[361859359,1747848638545,-430.0,0.00021917,2]
[361859360,1747848638555,-430.0,0.00021917,2]
[361859361,1747848638565,-430.0,0.00021917,2]
[361859362,1747848638575,-400.0,0.00021917,2]
[361859363,1747848638584,-431.69121681,0.00021917,2]
[361859364,1747848638594,-430.0,0.00021917,2]
[361859365,1747848638604,-430.0,0.00021917,2]
[361859366,1747848638614,-430.0,0.00021917,2]
[361859367,1747848638624,-430.0,0.00021917,2]
[361859368,1747848638633,-430.0,0.00021917,2]
[361859369,1747848638642,-430.0,0.00021917,2]
[361859370,1747848638652,-406.14284983,0.00021917,2]
[361859371,1747848638662,-404.95849681,0.00021917,2]
[361859372,1747848638672,-520.8623758,0.00021917,2]
[361859373,1747848638685,-402.23072296,0.00021917,2]
[361859374,1747848638695,-403.94619745,0.00021917,2]
[361859375,1747848638705,-430.0,0.00021917,2]
[361859376,1747848638715,-430.0,0.00021917,2]
[361859377,1747848638729,-430.0,0.00021917,2]
[361859378,1747848638739,-430.0,0.00021917,2]
[361859379,1747848638750,-430.0,0.00021917,2]
[361859380,1747848638760,-430.0,0.00021917,2]
[361859381,1747848638771,-432.81831017,0.00021917,2]
[361859382,1747848638782,-432.56113998,0.00021917,2]
[361859383,1747848638792,-464.32688864,0.00021917,2]
[361859384,1747848638802,-393.22122038,0.00021917,2]
[361859385,1747848638812,-430.51694996,0.00021917,2]
[361859386,1747848638822,-430.0,0.00021917,2]
[361859387,1747848638831,-430.0,0.00021917,2]
[361859388,1747848638843,-430.0,0.00021917,2]
[361859389,1747848638853,-430.0,0.00021917,2]
[361859390,1747848638863,-430.0,0.00021917,2]
[361859391,1747848638874,-430.0,0.00021917,2]
[361859392,1747848638884,-430.0,0.00021917,2]
[361859393,1747848638894,-430.0,0.00021917,2]
[361859394,1747848638904,-430.0,0.00021917,2]
[361859395,1747848638914,-493.99742727,0.00021917,2]
[361859396,1747848638924,-208.0545317,0.00021917,2]
[361859397,1747848638942,-430.0,0.00021917,2]
[361859398,1747848638952,-400.0,0.00021917,2]
[361859399,1747848638962,-430.0,0.00021917,2]
[361859400,1747848638972,-239.98479044,0.00021917,2]
[361859401,1747848638981,-430.0,0.00021917,2]
[361859402,1747848638991,-430.0,0.00021917,2]
[361859403,1747848639002,-430.64084423,0.00021917,2]
[361859404,1747848639013,-430.0,0.00021917,2]
[361859405,1747848639023,-430.0,0.00021917,2]
[361859406,1747848639033,-430.0,0.00021917,2]
[361859407,1747848639043,-430.0,0.00021917,2]
[361859408,1747848639053,-430.0,0.00021917,2]
[361859409,1747848639064,-430.0,0.00021917,2]
[361859410,1747848639074,-430.0,0.00021917,2]
[361859411,1747848639083,-453.83857874,0.00021917,2]
[361859412,1747848639094,-430.0,0.00021917,2]
[361859413,1747848639104,-430.0,0.00021917,2]
[361859414,1747848639115,-431.24401611,0.00021917,2]
[361859415,1747848639126,-430.0,0.00021917,2]
[361859416,1747848639136,-431.8041462,0.00021917,2]
[361859417,1747848639267,-431.40152635,0.00021917,2]
[361859418,1747848639278,-430.0,0.00021917,2]
[361859419,1747848639288,-430.0,0.00021917,2]
[361859420,1747848639298,-404.92512795,0.00021917,2]
[361859421,1747848639310,-430.80770981,0.00021917,2]
[361859422,1747848639321,-430.0,0.00021917,2]
[361859423,1747848639332,-150.96260043,0.00021917,2]
[361859424,1747848639342,-506.41427673,0.00021917,2]
[361859425,1747848639353,-430.0,0.00021917,2]
[361859426,1747848639363,-430.0,0.00021917,2]
[361859427,1747848639374,-430.0,0.00021917,2]
[361859428,1747848639384,-430.0,0.00021917,2]
[361859429,1747848639394,-402.59939123,0.00021917,2]
[361859432,1747848639405,-430.0,0.00021917,2]
[361859434,1747848639418,-430.0,0.00021917,2]
[361859436,1747848639435,-431.10990926,0.00021917,2]
[361859438,1747848639448,-523.13737141,0.00021917,2]
[361859440,1747848639459,-430.0,0.00021917,2]
[361859443,1747848639470,-431.07858236,0.00021917,2]
[361859444,1747848639481,-403.05956044,0.00021917,2]
[361859446,1747848639491,-430.0,0.00021917,2]
[361859448,1747848639502,-338.36229431,0.00021917,2]
[361859450,1747848639512,-260.0,0.00021917,2]
[361859452,1747848639523,-430.0,0.00021917,2]
[361859454,1747848639535,-430.0,0.00021917,2]
[361859456,1747848639546,-433.46536059,0.00021917,2]
[361859458,1747848639556,-430.0,0.00021917,2]
[361859459,1747848639568,-430.0,0.00021917,2]
[361859461,1747848639579,-430.0,0.00021917,2]
[361859463,1747848639590,-430.0,0.00021917,2]
[361859464,1747848639601,-401.14428768,0.00021917,2]
[361859466,1747848639612,-430.0,0.00021917,2]
[361859468,1747848639623,-430.0,0.00021917,2]
[361859471,1747848639634,-430.0,0.00021917,2]
[361859472,1747848639645,-431.61067073,0.00021917,2]
[361859473,1747848639655,-403.11422598,0.00021917,2]
[361859474,1747848639664,-430.0,0.00021917,2]
[361859475,1747848639674,-401.34913735,0.00021917,2]
[361859477,1747848639691,-430.0,0.00021917,2]
[361859479,1747848639701,-21541.79,0.00021917,2]
[361859481,1747848639710,-401.98528849,0.00021917,2]
[361859483,1747848639724,-430.0,0.00021917,2]
[361859485,1747848639735,-406.43550825,0.00021917,2]
[361859486,1747848639745,-404.55815723,0.00021917,2]
[361859487,1747848639756,-344.4261781,0.00021917,2]
[361859488,1747848639767,-430.0,0.00021917,2]
[361859489,1747848639777,-430.0,0.00021917,2]
[361859490,1747848639787,-430.0,0.00021917,2]
[361859491,1747848639798,-432.64667459,0.00021917,2]
[361859492,1747848639807,-408.82727833,0.00021917,2]
[361859493,1747848639818,-430.0,0.00021917,2]
[361859495,1747848639830,-430.0,0.00021917,2]
[361859497,1747848639840,-430.0,0.00021917,2]
[361859498,1747848639851,-402.83259621,0.00021917,2]
[361859499,1747848639862,-402.65766845,0.00021917,2]
[361859500,1747848639872,-430.0,0.00021917,2]
[361859501,1747848639883,-430.0,0.00021917,2]
[361859502,1747848639893,-406.10549663,0.00021917,2]
[361859503,1747848639903,-430.0,0.00021917,2]
[361859504,1747848639913,-430.0,0.00021917,2]
[361859505,1747848639923,-430.0,0.00021917,2]
[361859506,1747848639939,-430.0,0.00021917,2]
[361859507,1747848639949,-402.16397044,0.00021917,2]
[361859508,1747848639959,-430.0,0.00021917,2]
[361859510,1747848639969,-432.10512746,0.00021917,2]
[361859511,1747848639979,-430.0,0.00021917,2]
[361859512,1747848639989,-430.0,0.00021917,2]
[361859513,1747848639999,-400.0,0.00021917,2]
[361859514,1747848640009,-430.0,0.00021917,2]
[361859515,1747848640019,-430.0,0.00021917,2]
[361859516,1747848640030,-403.13121289,0.00021917,2]
[361859518,1747848640040,-399.90149167,0.00021917,2]
[361859520,1747848640050,-527.72755288,0.00021917,2]
[361859522,1747848640060,-430.0,0.00021917,2]
[361859523,1747848640070,-430.0,0.00021917,2]
[361859525,1747848640080,-430.0,0.00021917,2]
[361859526,1747848640090,-430.0,0.00021917,2]
[361859527,1747848640100,-430.0,0.00021917,2]
[361859528,1747848640110,-430.66831409,0.00021917,2]
[361859529,1747848640120,-198.67538152,0.00021917,2]
[361859530,1747848640133,-430.54603059,0.00021917,2]
[361859531,1747848640145,-430.0,0.00021917,2]
[361859532,1747848640155,-430.9953378,0.00021917,2]
[361859533,1747848640165,-401.0998147,0.00021917,2]
[361859534,1747848640176,-430.0,0.00021917,2]
[361859535,1747848640190,-430.55120305,0.00021917,2]
[361859537,1747848640200,-430.0,0.00021917,2]
[361859538,1747848640210,-430.0,0.00021917,2]
[361859540,1747848640220,-401.85974206,0.00021917,2]
[361859541,1747848640229,-430.0,0.00021917,2]
[361859542,1747848640239,-478.0,0.00021917,2]
[361859543,1747848640249,-500.92,0.00021917,2]
[361859544,1747848640258,-430.0,0.00021917,2]
[361859546,1747848640268,-430.0,0.00021917,2]
[361859547,1747848640278,-430.0,0.00021917,2]
[361859548,1747848640288,-430.0,0.00021917,2]
[361859549,1747848640297,-489.33,0.00021917,2]
[361859550,1747848640307,-490.06327976,0.00021917,2]
[361859551,1747848640316,-431.40797173,0.00021917,2]
[361859552,1747848640327,-430.0,0.00021917,2]
[361859553,1747848640336,-432.98730845,0.00021917,2]
[361859554,1747848640346,-431.88087212,0.00021917,2]
[361859555,1747848640356,-430.0,0.00021917,2]
[361859557,1747848640366,-430.0,0.00021917,2]
[361859559,1747848640375,-401.95693543,0.00021917,2]
[361859560,1747848640385,-430.0,0.00021917,2]
[361859562,1747848640395,-431.96756288,0.00021917,2]
[361859564,1747848640405,-343.20434779,0.00021917,2]
[361859565,1747848640415,-401.167621,0.00021917,2]
[361859566,1747848640426,-433.32356447,0.00021917,2]
[361859568,1747848640442,-400.0,0.00021917,2]
[361859569,1747848640452,-401.54582982,0.00021917,2]
[361859570,1747848640462,-430.0,0.00021917,2]
[361859571,1747848640472,-658.8,0.00021917,2]
[361859572,1747848640481,-151.0,0.00021917,2]
[361859573,1747848640490,-403.21878443,0.00021917,2]
[361859574,1747848640500,-430.64900735,0.00021917,2]
[361859575,1747848640509,-430.0,0.00021917,2]
[361859576,1747848640519,-1000.64332476,0.00021917,2]
[361859577,1747848640528,-430.0,0.00021917,2]
[361859578,1747848640538,-431.67944981,0.00021917,2]
[361859580,1747848640548,-430.0,0.00021917,2]
[361859581,1747848640558,-159.10041,0.00021917,2]
[361859582,1747848640569,-431.54164494,0.00021917,2]
[361859583,1747848640578,-430.0,0.00021917,2]
[361859584,1747848640588,-430.0,0.00021917,2]
[361859585,1747848640598,-430.0,0.00021917,2]
[361859586,1747848640607,-300.0,0.00021917,2]
[361859587,1747848640617,-430.0,0.00021917,2]
[361859588,1747848640627,-292.15838293,0.00021917,2]
[361859589,1747848640637,-430.0,0.00021917,2]
[361859590,1747848640647,-431.3922381,0.00021917,2]
[361859591,1747848640657,-430.0,0.00021917,2]
[361859592,1747848640667,-430.71108495,0.00021917,2]
[361859593,1747848640677,-430.0,0.00021917,2]
[361859594,1747848640692,-430.0,0.00021917,2]
[361859595,1747848640702,-430.0,0.00021917,2]
[361859596,1747848640712,-400.0,0.00021917,2]
[361859597,1747848640725,-507.18152582,0.00021917,2]
[361859598,1747848640735,-433.6077534,0.00021917,2]
[361859599,1747848640747,-431.96434509,0.00021917,2]
[361859600,1747848640758,-430.0,0.00021917,2]
[361859601,1747848640770,-432.95490916,0.00021917,2]
[361859602,1747848640780,-430.0,0.00021917,2]
[361859603,1747848640791,-430.47614041,0.00021917,2]
[361859604,1747848640801,-430.0,0.00021917,2]
[361859605,1747848640812,-430.0,0.00021917,2]
[361859606,1747848640822,-430.0,0.00021917,2]
[361859607,1747848640832,-430.0,0.00021917,2]
[361859608,1747848640842,-151.0,0.00021917,2]
[361859609,1747848640853,-430.0,0.00021917,2]
[361859610,1747848640863,-433.04701437,0.00021917,2]
[361859611,1747848640874,-430.0,0.00021917,2]
[361859612,1747848640885,-430.0,0.00021917,2]
[361859613,1747848640894,-430.0,0.00021917,2]
[361859614,1747848640904,-430.0,0.00021917,2]
[361859615,1747848640915,-430.0,0.00021917,2]
[361859616,1747848640925,-430.0,0.00021917,2]
[361859617,1747848640943,-430.84832186,0.00021917,2]
[361859618,1747848640954,-485.66001367,0.00021917,2]
[361859619,1747848640965,-430.0,0.00021917,2]
[361859620,1747848640976,-600.9,0.00021917,2]
[361859621,1747848640986,-430.0,0.00021917,2]
[361859622,1747848640997,-460.0,0.00021917,2]
[361859623,1747848641008,-403.02955024,0.00021917,2]
[361859624,1747848641018,-431.18459552,0.00021917,2]
[361859625,1747848641029,-408.8396089,0.00021917,2]
[361859626,1747848641039,-430.0,0.00021917,2]
[361859627,1747848641049,-430.0,0.00021917,2]
[361859628,1747848641059,-430.0,0.00021917,2]
[361859629,1747848641069,-430.0,0.00021917,2]
[361859630,1747848641078,-500.0,0.00021917,2]
[361859631,1747848641088,-430.0,0.00021917,2]
[361859632,1747848641098,-430.91758074,0.00021917,2]
[361859633,1747848641108,-430.8072847,0.00021917,2]
[361859634,1747848641118,-430.0,0.00021917,2]
[361859635,1747848641127,-430.0,0.00021917,2]
[361859636,1747848641136,-430.0,0.00021917,2]
[361859637,1747848641146,-430.0,0.00021917,2]
[361859638,1747848641156,-417.89,0.00021917,2]
[361859639,1747848641167,-430.0,0.00021917,2]
[361859640,1747848641176,-430.0,0.00021917,2]
[361859641,1747848641192,-430.0,0.00021917,2]
[361859642,1747848641201,-507.85140425,0.00021917,2]
[361859643,1747848641211,-430.0,0.00021917,2]
[361859644,1747848641221,-430.82970958,0.00021917,2]
[361859645,1747848641232,-431.26906748,0.00021917,2]
[361859646,1747848641242,-569.7445766,0.00021917,2]
[361859647,1747848641251,-430.0,0.00021917,2]
[361859648,1747848641261,-430.0,0.00021917,2]
[361859649,1747848641270,-430.0,0.00021917,2]
[361859650,1747848641280,-430.0,0.00021917,2]
[361859651,1747848641290,-430.0,0.00021917,2]
[361859652,1747848641299,-430.0,0.00021917,2]
[361859653,1747848641309,-430.0,0.00021917,2]
[361859654,1747848641319,-1002.62,0.00021917,2]
[361859655,1747848641329,-430.0,0.00021917,2]
[361859656,1747848641338,-430.0,0.00021917,2]
[361859657,1747848641347,-430.0,0.00021917,2]
[361859658,1747848641357,-430.0,0.00021917,2]
[361859659,1747848641367,-430.0,0.00021917,2]
[361859660,1747848641377,-430.0,0.00021917,2]
[361859661,1747848641387,-560.71,0.00021917,2]
[361859662,1747848641397,-430.0,0.00021917,2]
[361859663,1747848641406,-151.0,0.00021917,2]
[361859664,1747848641416,-430.0,0.00021917,2]
[361859665,1747848641425,-430.0,0.00021917,2]
[361859666,1747848641442,-430.0,0.00021917,2]
[361859667,1747848641451,-430.0,0.00021917,2]
[361859668,1747848641461,-430.0,0.00021917,2]
[361859669,1747848641470,-430.0,0.00021917,2]
[361859670,1747848641480,-431.04214636,0.00021917,2]
[361859671,1747848641489,-431.54354014,0.00021917,2]
[361859672,1747848641499,-432.81462948,0.00021917,2]
[361859673,1747848641508,-430.0,0.00021917,2]
[361859674,1747848641518,-430.0,0.00021917,2]
[361859675,1747848641527,-430.0,0.00021917,2]
[361859676,1747848641536,-430.76774755,0.00021917,2]
[361859677,1747848641546,-430.0,0.00021917,2]
[361859678,1747848641555,-432.12813567,0.00021917,2]
[361859679,1747848641564,-430.0,0.00021917,2]
[361859680,1747848641574,-430.0,0.00021917,2]
[361859681,1747848641584,-430.0,0.00021917,2]
[361859682,1747848641593,-430.7695933,0.00021917,2]
[361859683,1747848641603,-403.83095373,0.00021917,2]
[361859684,1747848641823,-170.26730873,0.00021917,2]
[361859685,1747848641833,-430.0,0.00021917,2]
[361859686,1747848641843,-430.0,0.00021917,2]
[361859687,1747848641853,-430.0,0.00021917,2]
[361859688,1747848641863,-440.0,0.00021917,2]
[361859689,1747848641874,-431.46120494,0.00021917,2]
[361859690,1747848641883,-430.59000275,0.00021917,2]
[361859691,1747848641893,-400.36788846,0.00021917,2]
[361859692,1747848641903,-430.0,0.00021917,2]
[361859693,1747848641913,-430.0,0.00021917,2]
[361859694,1747848641923,-430.0,0.00021917,2]
[361859695,1747848641936,-432.7624533,0.00021917,2]
[361859696,1747848641946,-430.0,0.00021917,2]
[361859697,1747848641956,-430.0,0.00021917,2]
[361859698,1747848641965,-430.0,0.00021917,2]
[361859699,1747848641975,-506.54551428,0.00021917,2]
[361859700,1747848641985,-430.0,0.00021917,2]
[361859701,1747848641995,-405.73317611,0.00021917,2]
[361859702,1747848642005,-430.0,0.00021917,2]
[361859703,1747848642014,-431.07476252,0.00021917,2]
[361859704,1747848642024,-430.0,0.00021917,2]
[361859705,1747848642034,-430.0,0.00021917,2]
[361859706,1747848642044,-430.0,0.00021917,2]
[361859707,1747848642053,-430.99437903,0.00021917,2]
[361859708,1747848642063,-430.0,0.00021917,2]
[361859709,1747848642073,-250.85220295,0.00021917,2]
[361859710,1747848642083,-430.0,0.00021917,2]
[361859711,1747848642093,-400.80650554,0.00021917,2]
[361859712,1747848642102,-430.0,0.00021917,2]
[361859713,1747848642112,-500.0,0.00021917,2]
[361859714,1747848642121,-500.0,0.00021917,2]
[361859715,1747848642131,-501.0,0.00021917,2]
[361859716,1747848642141,-500.0,0.00021917,2]
[361859717,1747848642151,-500.0,0.00021917,2]
[361859718,1747848642160,-500.0,0.00021917,2]
[361859719,1747848642170,-430.0,0.00021917,2]
[361859720,1747848642179,-430.0,0.00021917,2]